bitfinex/quotes_BTCUSD_20220202
["timestamp","ask_amount","ask_price","bid_price","bid_amount"]
[1643788612699,0.7522,38306.0,38296.0,0.130527]
[1643788612998,0.7522,38306.0,38297.0,0.35129782]
[1643788613197,0.7522,38306.0,38296.0,0.130527]
[1643788613402,0.81747167,38306.0,38296.0,0.130527]
[1643788613797,0.81747167,38306.0,38296.0,0.180527]
[1643788614000,0.065272,38304.0,38296.0,0.180527]
[1643788614200,0.0522,38303.0,38296.0,0.180527]
[1643788615842,0.10248712,38301.0,38296.0,0.180527]
[1643788616847,0.0522,38300.0,38295.0,0.0008173]
[1643788617248,0.0522,38300.0,38289.0,0.56411569]
[1643788617249,0.1022,38300.0,38289.0,0.56411569]
[1643788617447,0.240585,38297.0,38295.0,0.0008173]
[1643788617648,0.6522,38296.0,38295.0,0.0008173]
[1643788618448,0.065286,38294.0,38286.0,0.51555737]
[1643788618753,0.20662162,38293.0,38286.0,0.51555737]
[1643788618998,0.27190662,38293.0,38286.0,0.51555737]
[1643788619198,0.065286,38294.0,38286.0,0.83451092]
[1643788619400,0.065286,38294.0,38287.0,0.41255014]
[1643788619601,0.065286,38294.0,38288.0,0.31769831]
[1643788619902,0.065286,38294.0,38288.0,0.31850449]
[1643788620100,0.065286,38294.0,38288.0,0.00080618]
[1643788620700,0.065286,38294.0,38287.0,0.43499437]
[1643788620900,0.065286,38294.0,38289.0,0.00080616]
[1643788621502,0.030568,38295.0,38289.0,0.06608716]
[1643788621803,0.082768,38295.0,38289.0,0.06608716]
[1643788622003,0.082768,38295.0,38289.0,0.065281]
[1643788622204,0.065286,38294.0,38290.0,0.00080867]
[1643788622653,0.030568,38295.0,38290.0,0.00080867]
[1643788622847,0.42,38296.0,38290.0,0.00080867]
[1643788623247,0.42,38296.0,38289.0,0.065281]
[1643788623447,0.42,38296.0,38292.0,0.065279]
[1643788624648,0.42,38296.0,38292.0,0.06608763]
[1643788625251,0.485281,38296.0,38292.0,0.06608763]
[1643788625652,0.485281,38296.0,38292.0,0.065279]
[1643788625853,0.42,38296.0,38292.0,0.06608706]
[1643788626690,0.42,38296.0,38292.0,0.065279]
[1643788626989,0.42,38296.0,38292.0,0.06615812]
[1643788627891,0.42,38296.0,38292.0,0.06535006]
[1643788628190,0.42,38296.0,38292.0,0.06615812]
[1643788629293,0.42,38296.0,38292.0,0.06076906]
[1643788629495,0.42,38296.0,38292.0,0.06157725]
[1643788630346,0.42,38296.0,38292.0,0.06076906]
[1643788630545,0.42,38296.0,38292.0,0.06157725]
[1643788631248,0.485277,38296.0,38292.0,0.06157725]
[1643788631648,0.485277,38296.0,38292.0,0.06076906]
[1643788631846,0.485277,38296.0,38292.0,0.06157725]
[1643788632847,0.485277,38296.0,38292.0,0.06076906]
[1643788633047,0.485277,38296.0,38292.0,0.06157722]
[1643788633895,0.485277,38296.0,38292.0,0.16076906]
[1643788634096,0.485277,38296.0,38292.0,0.16157722]
[1643788635096,0.485277,38296.0,38292.0,0.16076906]
[1643788635296,0.485277,38296.0,38292.0,0.16157722]
[1643788635495,0.485277,38296.0,38293.0,0.32020579]
[1643788635696,0.485277,38296.0,38292.0,0.06157722]
[1643788636397,0.485277,38296.0,38292.0,0.06076906]
[1643788636697,0.485277,38296.0,38293.0,0.32244348]
[1643788637097,0.485277,38296.0,38292.0,0.06157723]
[1643788637497,0.480277,38296.0,38292.0,0.06157723]
[1643788638743,0.480277,38296.0,38292.0,0.06076906]
[1643788638944,0.480277,38296.0,38292.0,0.06157723]
[1643788639944,0.480277,38296.0,38292.0,0.06076906]
[1643788640144,0.480277,38296.0,38292.0,0.06157723]
[1643788640344,0.480277,38296.0,38292.0,0.37916287]
[1643788641146,0.480277,38296.0,38292.0,0.3783547]
[1643788641147,0.42,38296.0,38292.0,0.3783547]
[1643788641389,0.42,38296.0,38292.0,0.37916287]
[1643788641591,0.42,38296.0,38292.0,0.70982432]
[1643788642195,0.42,38296.0,38293.0,0.33066145]
[1643788642391,0.42,38296.0,38294.0,0.45662227]
[1643788642591,0.42,38296.0,38294.0,0.130539]
[1643788642790,0.42,38296.0,38294.0,0.45378564]
[1643788642991,0.42,38296.0,38294.0,0.130539]
[1643788643290,0.42,38296.0,38294.0,0.45019368]
[1643788643491,0.42,38296.0,38294.0,0.130539]
[1643788643692,0.42,38296.0,38294.0,0.44677419]
[1643788643893,0.42,38296.0,38294.0,0.130539]
[1643788645451,0.42,38296.0,38294.0,0.12495038]
[1643788645654,0.42,38296.0,38294.0,0.45561183]
[1643788646253,0.42,38296.0,38295.0,0.58066145]
[1643788646452,0.1305276,38303.0,38295.0,0.99101717]
[1643788646656,1.4874,38305.0,38297.0,0.3958704]
[1643788646855,1.4874,38305.0,38299.0,0.3306114]
[1643788646856,0.7269,38305.0,38299.0,0.3306114]
[1643788647055,0.41606401,38308.0,38300.0,0.71165682]
[1643788647359,0.41606401,38308.0,38300.0,0.91259682]
[1643788648153,0.68999275,38308.0,38300.0,0.91259682]
[1643788648354,0.68999275,38308.0,38302.0,0.07936643]
[1643788648554,0.19076401,38308.0,38302.0,0.07936643]
[1643788648754,0.19076401,38308.0,38300.0,0.91259682]
[1643788649391,0.19076401,38308.0,38300.0,0.20094]
[1643788649593,0.39961596,38308.0,38300.0,0.20094]
[1643788649791,0.39961596,38308.0,38300.0,0.6315514]
[1643788649994,0.39961596,38308.0,38300.0,0.81072107]
[1643788650192,0.39961596,38308.0,38300.0,0.4306114]
[1643788650392,0.39961596,38308.0,38303.0,0.065254]
[1643788650593,0.065259,38305.0,38303.0,0.065254]
[1643788651002,0.065259,38305.0,38303.0,0.38094382]
[1643788651194,0.065259,38305.0,38303.0,0.065254]
[1643788654151,0.065259,38305.0,38303.0,0.38115886]
[1643788654353,0.065259,38305.0,38303.0,0.065254]
[1643788655854,0.065259,38305.0,38303.0,0.06122583]
[1643788658493,0.04568147,38305.0,38303.0,0.06122583]
[1643788664295,0.61575983,38308.0,38303.0,0.06122583]
[1643788664496,0.61575983,38308.0,38303.0,0.39183723]
[1643788664894,0.61575983,38308.0,38303.0,0.06122583]
[1643788665893,0.21126927,38307.0,38303.0,0.06122583]
[1643788666294,0.21126927,38307.0,38303.0,0.05730679]
[1643788666898,0.21126927,38307.0,38303.0,0.38791819]
[1643788667495,0.61575983,38308.0,38303.0,0.38791819]
[1643788667750,0.61575983,38308.0,38303.0,0.05730679]
[1643788668750,0.61575983,38308.0,38303.0,0.38791819]
[1643788669150,0.550507,38308.0,38303.0,0.38791819]
[1643788671500,0.550507,38308.0,38303.0,0.05730679]
[1643788671701,0.065257,38305.0,38303.0,0.05730679]
[1643788672503,0.065257,38305.0,38303.0,0.38791819]
[1643788673701,0.065257,38305.0,38303.0,0.05730679]
[1643788675153,0.065257,38305.0,38303.0,0.38791819]
[1643788676445,0.065257,38305.0,38303.0,0.7040793]
[1643788677045,0.065257,38305.0,38304.0,0.3306114]
[1643788677444,0.065257,38305.0,38304.0,0.6483359]
[1643788677645,0.065257,38305.0,38304.0,0.3177245]
[1643788677845,0.065257,38305.0,38303.0,0.38791819]
[1643788678045,0.485249,38308.0,38304.0,0.64534624]
[1643788678448,0.40779459,38308.0,38304.0,0.64534624]
[1643788678898,0.40779459,38308.0,38304.0,0.3306114]
[1643788679099,0.47304359,38308.0,38304.0,0.3306114]
[1643788681706,0.47304359,38308.0,38304.0,0.64444559]
[1643788682503,0.47304359,38308.0,38306.0,0.065246]
[1643788682945,0.40779459,38308.0,38306.0,0.065246]
[1643788683547,0.40779459,38308.0,38306.0,0.3958574]
[1643788684346,0.53829659,38308.0,38306.0,0.3958574]
[1643788685746,0.60354849,38308.0,38306.0,0.3958574]
[1643788686417,0.60354849,38308.0,38306.0,0.065246]
[1643788686717,0.60354849,38308.0,38303.0,0.3306114]
[1643788686718,0.32008997,38307.0,38303.0,0.3306114]
[1643788686916,0.37228997,38307.0,38303.0,0.3306114]
[1643788687116,0.37228997,38307.0,38304.0,0.3306114]
[1643788687315,0.48755847,38307.0,38302.0,0.3306114]
[1643788687515,0.3401342,38303.0,38301.0,0.3958784]
[1643788687717,0.3522,38302.0,38301.0,0.3306114]
[1643788687915,0.4022,38302.0,38299.0,0.38499437]
[1643788688115,0.71352986,38302.0,38301.0,0.33099]
[1643788688316,0.4022,38302.0,38301.0,0.33099]
[1643788688916,0.71527241,38302.0,38301.0,0.33099]
[1643788689115,0.467471,38302.0,38301.0,0.33099]
[1643788689316,0.91071474,38302.0,38301.0,0.33099]
[1643788690158,0.91071474,38302.0,38300.0,0.33099]
[1643788690357,0.33178887,38301.0,38300.0,0.33099]
[1643788690551,0.33178887,38301.0,38298.0,0.38499437]
[1643788690552,0.76942904,38300.0,38298.0,0.33099]
[1643788690752,0.76942904,38300.0,38297.0,0.33099]
[1643788690753,0.95578246,38299.0,38297.0,0.33099]
[1643788690952,0.95578246,38299.0,38296.0,0.33099]
[1643788690953,0.8043922,38298.0,38296.0,0.33099]
[1643788691154,0.22271524,38299.0,38295.0,0.33197994]
[1643788691155,0.6228605,38297.0,38295.0,0.33197994]
[1643788691356,0.36831385,38296.0,38295.0,0.33197994]
[1643788691652,0.36831385,38296.0,38293.0,0.38499437]
[1643788691654,0.36831385,38296.0,38293.0,0.33099]
[1643788691853,0.11528478,38295.0,38294.0,0.00098997]
[1643788692053,0.53010165,38295.0,38294.0,0.00098997]
[1643788692354,0.48010165,38295.0,38294.0,0.00098997]
[1643788692554,0.47862954,38295.0,38294.0,0.00098997]
[1643788693053,0.47862954,38295.0,38293.0,0.33197999]
[1643788693253,0.30868023,38294.0,38293.0,0.00098999]
[1643788693454,0.0522,38294.0,38293.0,0.00098999]
[1643788693654,0.0522,38294.0,38293.0,0.33197999]
[1643788693896,0.0522,38294.0,38293.0,0.00098999]
[1643788694193,0.0522,38294.0,38292.0,0.33205108]
[1643788694194,0.43376035,38294.0,38292.0,0.33205108]
[1643788694593,0.31273076,38293.0,38292.0,0.33205108]
[1643788694793,0.36493076,38293.0,38292.0,0.33205108]
[1643788695194,0.36493076,38293.0,38292.0,0.33106106]
[1643788695393,0.46493076,38293.0,38292.0,7.106e-05]
[1643788697296,0.1522,38293.0,38292.0,7.106e-05]
[1643788697499,0.51035691,38293.0,38292.0,7.106e-05]
[1643788698543,0.24622386,38293.0,38292.0,7.106e-05]
[1643788698743,0.29842386,38293.0,38292.0,7.106e-05]
[1643788698943,0.33545258,38293.0,38292.0,7.106e-05]
[1643788699442,0.08922872,38293.0,38292.0,7.106e-05]
[1643788700243,0.13922872,38293.0,38292.0,7.106e-05]
[1643788700845,0.44526027,38293.0,38292.0,7.106e-05]
[1643788701045,0.13922872,38293.0,38292.0,7.106e-05]
[1643788701902,0.45665994,38293.0,38292.0,7.106e-05]
[1643788702304,1.01463795,38293.0,38292.0,7.106e-05]
[1643788702503,1.68132578,38293.0,38292.0,7.106e-05]
[1643788702704,1.63132578,38293.0,38292.0,7.106e-05]
[1643788702902,1.78528158,38293.0,38292.0,7.106e-05]
[1643788703202,0.7,38292.0,38291.0,0.00049502]
[1643788703402,1.59565311,38292.0,38291.0,0.00049502]
[1643788703702,1.59565311,38292.0,38282.0,0.33099]
[1643788703703,0.23709836,38287.0,38282.0,0.33099]
[1643788703905,0.117497,38286.0,38282.0,0.33099]
[1643788704101,0.117497,38286.0,38282.0,0.396287]
[1643788704304,0.182793,38286.0,38282.0,0.396287]
[1643788704504,0.182793,38286.0,38283.0,0.33099]
[1643788704702,0.37868021,38286.0,38282.0,0.396287]
[1643788705158,0.60343406,38286.0,38283.0,0.00099025]
[1643788705347,0.24470014,38285.0,38283.0,0.00099025]
[1643788705546,0.0522,38284.0,38283.0,0.00099025]
[1643788706148,0.36374768,38284.0,38282.0,0.065297]
[1643788706348,0.30961013,38283.0,38282.0,0.06628728]
[1643788706548,0.0522,38283.0,38282.0,0.06628728]
[1643788707250,0.0522,38283.0,38282.0,0.065297]
[1643788710499,0.3022,38283.0,38282.0,0.065297]
[1643788711300,0.3022,38283.0,38281.0,0.0009903]
[1643788711500,0.36750169,38283.0,38281.0,0.0009903]
[1643788712102,0.36750169,38283.0,38280.0,0.065301]
[1643788712299,0.065301,38282.0,38280.0,0.06629131]
[1643788712500,0.02464293,38282.0,38280.0,0.06629131]
[1643788713246,0.02464293,38282.0,38280.0,0.065301]
[1643788717299,0.02464293,38282.0,38280.0,0.396291]
[1643788717797,0.34481472,38282.0,38280.0,0.396291]
[1643788717998,0.02464293,38282.0,38280.0,0.065301]
[1643788718596,0.17280936,38284.0,38280.0,0.065301]
[1643788718996,0.065301,38283.0,38280.0,0.065301]
[1643788719396,0.13060269,38283.0,38280.0,0.065301]
[1643788719598,0.13060269,38283.0,38280.0,0.00099033]
[1643788719599,0.065301,38282.0,38280.0,0.00099033]
[1643788719805,0.53798173,38282.0,38280.0,0.00099033]
[1643788720006,1.3836362,38281.0,38280.0,0.00099033]
[1643788720254,2.05004861,38281.0,38280.0,0.00099033]
[1643788720451,2.05004861,38281.0,38272.0,0.33099]
[1643788720452,2.43438003,38281.0,38272.0,0.33099]
[1643788720654,0.25275143,38274.0,38272.0,0.33099]
[1643788720851,0.0522,38273.0,38272.0,0.33099]
[1643788721052,0.0522,38273.0,38270.0,0.33099]
[1643788721254,0.0522,38273.0,38269.0,0.33099]
[1643788721455,0.13066,38273.0,38269.0,0.33099]
[1643788721658,0.2252352,38272.0,38267.0,0.33099]
[1643788721856,0.2252352,38272.0,38265.0,0.38609437]
[1643788721857,0.11753,38271.0,38269.0,0.0004953]
[1643788722954,0.11753,38271.0,38265.0,0.33209]
[1643788723154,0.11753,38271.0,38268.0,0.00049531]
[1643788724096,0.11753,38271.0,38266.0,0.33099]
[1643788724296,0.18286175,38271.0,38268.0,0.00099064]
[1643788725396,0.18286175,38271.0,38266.0,0.33099]
[1643788725598,0.18286175,38271.0,38268.0,0.00099064]
[1643788726496,0.18286175,38271.0,38266.0,0.396312]
[1643788726697,0.11753,38271.0,38268.0,0.00099064]
[1643788726898,0.0522,38271.0,38268.0,0.00099064]
[1643788727298,0.05043247,38271.0,38268.0,0.00099064]
[1643788727756,0.01743046,38271.0,38267.0,0.33099]
[1643788728053,0.01743046,38271.0,38268.0,0.00099064]
[1643788728452,0.01743046,38271.0,38269.0,0.065317]
[1643788730053,0.08275046,38271.0,38269.0,0.065317]
[1643788731903,0.06532,38271.0,38269.0,0.065317]
[1643788734805,0.07123613,38273.0,38269.0,0.065317]
[1643788735155,0.30783025,38272.0,38269.0,0.065317]
[1643788735347,0.07123613,38273.0,38269.0,0.065317]
[1643788735549,0.07123613,38273.0,38268.0,0.00099062]
[1643788735946,0.25188351,38269.0,38268.0,0.00099062]
[1643788736148,0.130643,38271.0,38266.0,0.130633]
[1643788736348,0.06532227,38270.0,38269.0,0.00099061]
[1643788737049,0.130643,38271.0,38269.0,0.00099061]
[1643788737248,0.065321,38271.0,38269.0,0.065317]
[1643788738449,0.41342193,38275.0,38269.0,0.065317]
[1643788738450,0.26548057,38275.0,38269.0,0.065317]
[1643788738651,0.13063919,38276.0,38269.0,0.065317]
[1643788739096,0.065316,38273.0,38269.0,0.065317]
[1643788739296,0.19595251,38273.0,38269.0,0.065317]
[1643788740097,0.19595251,38273.0,38269.0,0.0663076]
[1643788740498,0.19595251,38273.0,38269.0,0.0009906]
[1643788740899,0.19595251,38273.0,38268.0,0.33099]
[1643788741100,0.19595251,38273.0,38269.0,0.0009906]
[1643788741801,0.130642,38272.0,38269.0,0.0009906]
[1643788742202,0.43587378,38272.0,38268.0,0.33099]
[1643788742402,0.22186756,38271.0,38269.0,0.00099061]
[1643788743255,0.22186756,38271.0,38268.0,0.33099]
[1643788743651,0.22186756,38271.0,38268.0,0.33198062]
[1643788744151,0.52569926,38271.0,38268.0,0.33198062]
[1643788744551,0.52569926,38271.0,38268.0,0.33099]
[1643788744754,0.130635,38273.0,38271.0,0.25365569]
[1643788744955,0.195962,38281.0,38272.0,0.33099]
[1643788744956,0.2304,38281.0,38272.0,0.33099]
[1643788745154,0.2304,38281.0,38274.0,0.33099]
[1643788745352,0.2304,38281.0,38272.0,0.38499437]
[1643788745353,0.2304,38281.0,38275.0,0.33099]
[1643788745552,0.5744,38283.0,38275.0,0.33099]
[1643788745754,0.22327055,38279.0,38275.0,0.33099]
[1643788745954,0.22327055,38279.0,38277.0,0.0004952]
[1643788746502,0.22249109,38280.0,38277.0,0.0004952]
[1643788746902,0.22249109,38280.0,38276.0,0.396291]
[1643788747101,0.065302,38281.0,38277.0,0.29287823]
[1643788747302,0.7843,38284.0,38281.0,0.08494679]
[1643788747504,0.13058941,38289.0,38281.0,0.08494679]
[1643788747505,0.130582,38290.0,38281.0,0.08494679]
[1643788747706,0.130582,38290.0,38282.0,0.33099]
[1643788748106,0.065289,38287.0,38283.0,0.33099]
[1643788748306,0.22166033,38289.0,38284.0,0.00099021]
[1643788748505,0.27734438,38287.0,38284.0,0.00099021]
[1643788749004,0.35223767,38289.0,38284.0,0.00099021]
[1643788749406,0.35223767,38289.0,38283.0,0.396279]
[1643788749606,0.35223767,38289.0,38285.0,0.0009902]
[1643788750162,0.06529,38287.0,38285.0,0.0009902]
[1643788750551,0.06529,38287.0,38286.0,0.065288]
[1643788756902,0.06529,38287.0,38286.0,0.36883889]
[1643788757301,0.06352321,38287.0,38286.0,0.36883889]
[1643788758455,0.36418423,38291.0,38286.0,0.36883889]
[1643788758655,0.39323062,38291.0,38286.0,0.36883889]
[1643788759155,0.130584,38289.0,38287.0,0.00099015]
[1643788759356,0.19587234,38289.0,38287.0,0.00099015]
[1643788760256,0.24587234,38289.0,38286.0,0.36883889]
[1643788760458,0.24587234,38289.0,38286.0,0.36982905]
[1643788761500,0.24587234,38289.0,38286.0,0.36982906]
[1643788762098,0.24587234,38289.0,38286.0,0.06627817]
[1643788763700,0.24587234,38289.0,38286.0,0.065288]
[1643788763901,0.24587234,38289.0,38286.0,0.06627817]
[1643788764903,0.24587234,38289.0,38286.0,0.065288]
[1643788765158,0.24587234,38289.0,38286.0,0.06627817]
[1643788766153,0.24587234,38289.0,38286.0,0.065288]
[1643788766352,0.24587234,38289.0,38286.0,0.06627817]
[1643788766552,0.44144272,38289.0,38286.0,0.06627817]
[1643788767354,0.44144272,38289.0,38286.0,0.065288]
[1643788767555,0.44144272,38289.0,38286.0,0.06627817]
[1643788768557,0.44144272,38289.0,38286.0,0.065288]
[1643788768758,0.05,38288.0,38286.0,0.06627817]
[1643788769206,0.3748498,38288.0,38286.0,0.06627817]
[1643788769412,0.3748498,38288.0,38280.0,0.33099]
[1643788769413,0.83336884,38287.0,38280.0,0.33099]
[1643788769609,0.065304,38285.0,38278.0,0.33099]
[1643788769808,0.065304,38285.0,38276.0,0.38499437]
[1643788769810,0.065304,38285.0,38276.0,0.33099]
[1643788769811,0.245918,38285.0,38276.0,0.33099]
[1643788770007,0.376544,38285.0,38277.0,0.3248498]
[1643788770209,0.426544,38285.0,38281.0,0.01923968]
[1643788770407,0.30197471,38280.0,38277.0,0.3248498]
[1643788770608,0.36728271,38280.0,38275.0,0.6558398]
[1643788770908,0.41728271,38280.0,38275.0,0.6558398]
[1643788771107,0.41728271,38280.0,38276.0,0.00098548]
[1643788771308,0.195917,38278.0,38276.0,0.00098548]
[1643788771509,0.195917,38278.0,38276.0,0.06629248]
[1643788771707,0.05,38277.0,38276.0,0.39728248]
[1643788771910,0.245917,38278.0,38276.0,0.39728248]
[1643788772109,0.245917,38278.0,38276.0,0.396297]
[1643788772751,0.195917,38278.0,38276.0,0.396297]
[1643788773253,0.05,38277.0,38276.0,0.396297]
[1643788773451,0.05,38277.0,38276.0,0.065307]
[1643788773855,0.35297342,38277.0,38276.0,0.065307]
[1643788774051,0.35297342,38277.0,38275.0,0.33197549]
[1643788774251,0.29704322,38276.0,38275.0,0.33197549]
[1643788774456,0.115314,38277.0,38275.0,0.33197549]
[1643788774653,0.115314,38277.0,38275.0,0.33099]
[1643788774857,0.165314,38277.0,38275.0,0.33099]
[1643788775353,0.115314,38277.0,38275.0,0.33099]
[1643788776605,0.115314,38277.0,38276.0,0.33099]
[1643788778607,0.05,38278.0,38276.0,0.33099]
[1643788778806,0.25339552,38280.0,38276.0,0.33099]
[1643788779007,0.25339552,38280.0,38276.0,0.396297]
[1643788779208,0.065313,38278.0,38276.0,0.396297]
[1643788779408,0.13061855,38278.0,38276.0,0.396297]
[1643788779612,0.13061855,38278.0,38276.0,0.39728247]
[1643788779810,0.32653555,38278.0,38276.0,0.33197547]
[1643788780255,0.32653555,38278.0,38276.0,0.00098547]
[1643788780256,0.64508781,38277.0,38276.0,0.00098547]
[1643788780455,0.73309217,38277.0,38276.0,0.00098547]
[1643788780659,0.97906517,38277.0,38272.0,0.33099]
[1643788780856,0.84597269,38276.0,38270.0,0.38499437]
[1643788781055,0.84597269,38276.0,38265.0,0.7453]
[1643788781056,0.28825059,38274.0,38269.0,0.38499437]
[1643788781255,0.24826531,38273.0,38269.0,0.38499437]
[1643788781458,0.47891192,38273.0,38269.0,0.5697647]
[1643788781654,0.77900536,38273.0,38268.0,0.51562637]
[1643788782157,0.47891192,38273.0,38268.0,0.51562637]
[1643788782357,0.90454764,38273.0,38268.0,0.12368137]
[1643788782556,0.195973,38271.0,38268.0,0.12368137]
[1643788782756,0.295973,38271.0,38268.0,0.12368137]
[1643788782957,0.42662249,38271.0,38265.0,0.0011]
[1643788783157,0.42662249,38271.0,38268.0,0.00049161]
[1643788783457,0.73662249,38271.0,38264.0,0.0011]
[1643788784102,0.065325,38270.0,38264.0,0.0011]
[1643788784302,0.195972,38269.0,38264.0,0.0011]
[1643788784708,0.441944,38269.0,38264.0,0.0011]
[1643788785005,0.05,38268.0,38264.0,0.0011]
[1643788785307,0.13064704,38266.0,38264.0,0.0011]
[1643788785705,0.18064704,38266.0,38264.0,0.0011]
[1643788786505,0.18064704,38266.0,38264.0,0.131743]
[1643788789757,0.23064704,38266.0,38264.0,0.131743]
[1643788790557,0.52064704,38266.0,38264.0,0.130643]
[1643788790762,0.52065005,38266.0,38264.0,0.130643]
[1643788791412,0.23065005,38266.0,38264.0,0.130643]
[1643788791804,0.23065005,38266.0,38264.0,0.41221586]
[1643788792004,0.23065005,38266.0,38264.0,0.41110382]
[1643788792305,0.23065005,38266.0,38264.0,0.130643]
[1643788792906,0.065327,38266.0,38265.0,0.30249015]
[1643788793304,0.02654918,38266.0,38265.0,0.30249015]
[1643788794108,0.261295,38267.0,38265.0,0.4087948]
[1643788794407,0.00123484,38280.0,38279.0,0.715296]
[1643788794611,0.00123484,38280.0,38279.0,1.04758196]
[1643788794907,0.19713184,38280.0,38279.0,1.14758196]
[1643788795161,0.065296,38281.0,38279.0,1.14758196]
[1643788795162,0.06653107,38281.0,38279.0,1.14758196]
[1643788795352,0.06653107,38281.0,38280.0,0.78814718]
[1643788796152,0.065296,38281.0,38280.0,0.40222176]
[1643788796353,0.065296,38281.0,38280.0,0.78813932]
[1643788797154,0.19710005,38282.0,38280.0,0.78813932]
[1643788797354,0.19710005,38282.0,38281.0,0.93168113]
[1643788797355,0.195865,38282.0,38281.0,0.93168113]
[1643788797756,0.130576,38282.0,38281.0,1.03168113]
[1643788797953,0.00123505,38283.0,38281.0,1.03168113]
[1643788798154,0.00123505,38283.0,38282.0,1.33656092]
[1643788798354,0.00123505,38283.0,38282.0,1.37127892]
[1643788798355,0.13181105,38283.0,38282.0,1.37127892]
[1643788798559,0.04484245,38283.0,38282.0,0.93195813]
[1643788798760,0.04484245,38283.0,38282.0,0.87509316]
[1643788799019,0.04484245,38283.0,38282.0,0.77509316]
[1643788799621,0.06652003,38284.0,38282.0,0.77509316]
[1643788799823,2.49298491,38298.0,38283.0,1.22349125]
[1643788800020,2.49298491,38298.0,38290.0,0.33071608]
[1643788800229,2.48792491,38298.0,38290.0,0.33070603]
[1643788800723,2.48792491,38298.0,38291.0,0.43070603]
[1643788800726,0.25817553,38297.0,38291.0,0.43070603]
[1643788800921,0.06527,38294.0,38291.0,0.33070603]
[1643788801120,0.06527,38294.0,38292.0,0.33070603]
[1643788801522,0.06527,38294.0,38292.0,0.39597603]
[1643788802122,0.0179351,38293.0,38292.0,0.39597603]
[1643788806607,0.0179351,38293.0,38292.0,0.06527]
[1643788809408,0.0179351,38293.0,38292.0,0.263777]
[1643788811257,0.0679351,38293.0,38292.0,0.263777]
[1643788812557,0.19849187,38293.0,38292.0,0.263777]
[1643788814108,0.19849187,38293.0,38292.0,0.198507]
[1643788814711,0.58979236,38293.0,38292.0,0.198507]
[1643788814913,0.94087336,38293.0,38292.0,0.198507]
[1643788815211,0.7,38292.0,38284.0,0.130577]
[1643788815410,0.06529464,38288.0,38284.0,0.130577]
[1643788815610,0.08322974,38288.0,38284.0,0.130577]
[1643788815816,0.11529464,38288.0,38284.0,0.130577]
[1643788816809,0.11652962,38288.0,38284.0,0.130577]
[1643788817011,0.065295,38286.0,38284.0,0.130577]
[1643788817210,0.31117396,38286.0,38284.0,0.130577]
[1643788817857,0.36117396,38286.0,38284.0,0.130577]
[1643788818058,0.39582396,38286.0,38281.0,0.330926]
[1643788818259,0.1306,38285.0,38281.0,0.330926]
[1643788818658,0.0179351,38283.0,38281.0,0.330926]
[1643788818858,0.0742358,38286.0,38281.0,0.330926]
[1643788819259,0.00123504,38284.0,38281.0,0.330926]
[1643788819659,0.33567314,38283.0,38281.0,0.330926]
[1643788819859,0.40097058,38283.0,38281.0,0.130586]
[1643788820061,0.45097058,38283.0,38281.0,0.130586]
[1643788820363,0.0179351,38282.0,38281.0,0.130586]
[1643788822112,0.30018213,38282.0,38275.0,0.84713873]
[1643788822311,0.13062464,38279.0,38275.0,0.130609]
[1643788822510,0.47538493,38279.0,38275.0,0.130609]
[1643788822712,0.05,38278.0,38275.0,0.130609]
[1643788822910,0.23500653,38277.0,38275.0,0.130609]
[1643788823311,0.28500653,38277.0,38275.0,0.130609]
[1643788824210,0.0679351,38276.0,38275.0,0.130609]
[1643788825010,0.0679351,38276.0,38274.0,0.53092603]
[1643788825260,0.39835679,38276.0,38274.0,0.33070603]
[1643788825461,0.55517202,38276.0,38272.0,0.33070603]
[1643788825662,0.55517202,38276.0,38269.0,0.33070603]
[1643788825663,0.4098731,38275.0,38269.0,0.33070603]
[1643788825861,0.44593028,38274.0,38269.0,0.33070603]
[1643788826063,0.351081,38273.0,38268.0,0.33070603]
[1643788826261,0.351081,38273.0,38265.0,0.0011]
[1643788826262,1.04589569,38271.0,38265.0,0.0011]
[1643788826560,1.04589569,38271.0,38266.0,0.00097834]
[1643788826561,0.1431996,38267.0,38266.0,0.00097834]
[1643788826762,0.1931996,38267.0,38266.0,0.00097834]
[1643788827160,0.4611347,38267.0,38266.0,0.00097834]
[1643788827561,0.1179351,38267.0,38265.0,0.0011]
[1643788827761,0.05,38267.0,38265.0,0.0011]
[1643788828160,0.065332,38267.0,38265.0,0.0011]
[1643788828361,0.115332,38267.0,38265.0,0.0011]
[1643788828564,0.40722016,38266.0,38265.0,0.0011]
[1643788828762,0.17238758,38266.0,38265.0,0.0011]
[1643788829012,0.0179351,38266.0,38265.0,0.0011]
[1643788830213,0.0679351,38266.0,38265.0,0.0011]
[1643788832863,0.72297864,38266.0,38265.0,0.0011]
[1643788833061,0.5160961,38266.0,38265.0,0.0011]
[1643788833260,0.9660961,38266.0,38265.0,0.0001]
[1643788833461,0.6160961,38266.0,38265.0,0.0001]
[1643788833660,0.6160961,38266.0,38262.0,0.0011]
[1643788833661,0.79044418,38265.0,38264.0,0.00043186]
[1643788833964,1.43620776,38265.0,38264.0,0.00043186]
[1643788834765,1.43620776,38265.0,38254.0,0.13158]
[1643788834767,0.14,38263.0,38254.0,0.13158]
[1643788834964,0.14,38263.0,38251.0,0.141788]
[1643788834965,0.1,38257.0,38251.0,0.141788]
[1643788835164,0.1,38257.0,38251.0,0.01]
[1643788835165,0.35,38252.0,38251.0,0.01]
[1643788835362,0.1,38256.0,38251.0,0.01]
[1643788835561,0.0179351,38254.0,38251.0,0.01]
[1643788835761,0.15063,38254.0,38251.0,0.01]
[1643788835963,0.20063,38254.0,38251.0,0.01]
[1643788836163,0.331349,38254.0,38251.0,0.01038972]
[1643788836421,0.23069196,38253.0,38251.0,0.01038972]
[1643788837018,0.51000715,38253.0,38251.0,0.01]
[1643788837220,0.0179351,38252.0,38251.0,0.01]
[1643788837419,0.08328108,38252.0,38251.0,0.01]
[1643788837819,0.0179351,38252.0,38251.0,0.01]
[1643788838020,0.215986,38254.0,38251.0,0.71]
[1643788838220,0.215986,38254.0,38252.0,0.33509584]
[1643788838421,0.065356,38254.0,38252.0,0.33509584]
[1643788838621,0.065356,38254.0,38251.0,1.09682058]
[1643788838622,0.01087314,38253.0,38251.0,0.39682058]
[1643788838821,0.065356,38254.0,38251.0,0.01088615]
[1643788839025,3.5173017,38273.0,38252.0,0.20082]
[1643788839026,0.2206153,38257.0,38252.0,0.20082]
[1643788839223,0.130681,38256.0,38252.0,0.20082]